bitfinex-derivatives/quotes_ETHF0:USTF0_20250217
["timestamp","ask_amount","ask_price","bid_price","bid_amount"]
[1739751892037,3.83078,2667.1,2666.9,0.74981]
[1739751892544,3.83078,2667.1,2666.7,2.65355536]
[1739751892545,3.081,2667.1,2667.0,0.74979]
[1739751892845,0.74981,2667.0,2666.8,0.74983]
[1739751893050,3.081,2667.1,2666.7,2.65355536]
[1739751893249,0.578,2666.9,2666.7,3.40340536]
[1739751893442,0.578,2666.9,2666.7,2.65355536]
[1739751893642,0.578,2666.9,2666.7,3.40341536]
[1739751893842,0.578,2666.9,2666.8,0.74985]
[1739751895347,0.578,2666.9,2666.7,2.65355536]
[1739751895543,0.578,2666.9,2666.7,3.40341536]
[1739751895738,0.578,2666.9,2666.7,2.65355536]
[1739751896049,0.578,2666.9,2666.7,3.40341536]
[1739751896249,0.578,2666.9,2666.8,0.74985]
[1739751896447,0.578,2666.9,2666.7,2.65355536]
[1739751896747,1.32783,2666.9,2666.7,3.40341536]
[1739751896951,1.32783,2666.9,2666.7,2.65355536]
[1739751897147,0.578,2666.9,2666.8,0.74985]
[1739751901550,1.32783,2666.9,2666.7,2.65355536]
[1739751901941,0.578,2666.9,2666.8,0.74985]
[1739751904050,3.082,2666.9,2666.8,0.74985]
[1739751908954,2.504,2666.9,2666.8,0.74985]
[1739751913555,2.504,2666.9,2666.6,4.57712619]
[1739751913757,0.5886,2666.8,2666.7,0.74985]
[1739751914252,0.74988,2666.7,2666.6,5.32702619]
[1739751914459,0.5886,2666.8,2666.6,3.21341819]
[1739751914754,0.5886,2666.8,2666.7,3.40343536]
[1739751915251,2.504,2666.9,2666.7,3.40343536]
[1739751915456,2.504,2666.9,2666.8,0.74985]
[1739751916054,2.49617,2667.1,2666.7,3.20095536]
[1739751916055,1.1656,2667.1,2666.7,3.20095536]
[1739751916258,3.2078,2667.6,2667.5,0.74965]
[1739751916557,5.7118,2667.6,2667.5,0.74965]
[1739751916859,3.95744,2667.6,2667.4,0.74966]
[1739751917154,0.74968,2667.4,2667.2,0.74973]
[1739751917361,0.74968,2667.4,2667.0,1.931508]
[1739751917362,0.74975,2667.2,2667.0,2.113498]
[1739751917658,1.199,2667.1,2667.0,0.74979]
[1739751918162,5.7118,2667.3,2666.8,2.65355536]
[1739751918453,5.7118,2667.3,2666.9,0.543]
[1739751918651,5.7118,2667.3,2667.1,0.74974]
[1739751918854,6.46152,2667.3,2667.0,0.74977]
[1739751919054,5.7118,2667.3,2666.8,2.65355536]
[1739751919451,5.7118,2667.3,2667.1,0.74975]
[1739751921155,3.2078,2667.3,2666.8,2.65355536]
[1739751921461,5.7118,2667.3,2666.9,0.5996]
[1739751921661,5.7118,2667.3,2666.8,2.65355536]
[1739751921971,3.2078,2666.9,2666.6,1.36932619]
[1739751922160,4.2234,2666.8,2666.6,0.00561819]
[1739751922359,0.74988,2666.7,2666.6,0.00561819]
[1739751923363,4.2234,2666.8,2666.6,0.00561819]
[1739751923555,0.74988,2666.7,2666.6,0.00561819]
[1739751924158,4.97326,2666.8,2666.6,0.00561819]
[1739751924461,4.2234,2666.8,2666.6,0.00561819]
[1739751924661,4.2234,2666.8,2666.7,0.74988]
[1739751925058,1.1394,2666.8,2666.7,0.74988]
[1739751925368,2.504,2667.0,2666.9,0.74982]
[1739751926059,1.1425,2667.1,2666.8,2.65355536]
[1739751926365,0.5678,2667.4,2667.3,0.74971]
[1739751926562,3.0718,2667.4,2667.3,0.74971]
[1739751927455,0.5678,2667.4,2667.3,0.74971]
[1739751927661,3.0708,2667.4,2667.3,0.74971]
[1739751927863,0.74973,2667.3,2667.1,2.65355536]
[1739751928057,3.2078,2667.2,2666.6,0.00561819]
[1739751928265,3.2078,2666.9,2666.6,0.00561819]
[1739751928464,0.5793,2666.8,2666.6,0.00561819]
[1739751928660,0.5739,2666.7,2666.6,0.00561819]
[1739751928969,0.5739,2666.7,2666.6,0.75552819]
[1739751929170,0.5793,2666.8,2666.6,0.00561819]
[1739751929472,3.7646,2666.9,2666.7,0.74986]
[1739751929473,3.2078,2666.9,2666.7,0.74986]
[1739751929662,3.2078,2666.9,2666.6,0.00561819]
[1739751929859,2.503,2667.0,2666.9,0.74982]
[1739751933964,4.9178,2667.4,2667.3,0.74971]
[1739751934168,1.71,2667.4,2667.3,0.74971]
[1739751934658,2.4597,2667.4,2667.2,0.74973]
[1739751934964,1.71,2667.4,2667.1,2.65355536]
[1739751935164,1.71,2667.4,2667.3,0.74971]
[1739751939363,1.71,2667.4,2667.2,0.74973]
[1739751939569,1.71,2667.4,2667.1,2.65355536]
[1739751939775,1.71,2667.4,2667.3,0.74971]
[1739751940671,1.1532,2667.4,2667.3,0.74971]
[1739751944874,3.7879,2667.7,2667.3,0.74971]
[1739751945072,2.503,2667.7,2667.6,0.74962]
[1739751945779,3.25261,2667.7,2667.5,0.74964]
[1739751946479,2.503,2667.7,2667.6,0.74962]
[1739751946678,3.25261,2667.7,2667.5,0.74965]
[1739751947775,0.5934,2667.6,2667.5,0.74965]
[1739751947974,0.5934,2667.6,2667.4,2.65355536]
[1739751948181,0.5934,2667.6,2667.1,3.22615536]
[1739751948583,0.5934,2667.6,2667.1,5.10055536]
[1739751948782,0.5934,2667.6,2667.1,3.22615536]
[1739751948981,1.34305,2667.6,2667.3,0.74971]
[1739751949178,1.34304,2667.6,2667.3,0.74971]
[1739751949677,0.7497,2667.4,2666.8,7.81306336]
[1739751949880,0.6007,2667.3,2667.1,0.74976]
[1739751950078,1.1618,2667.3,2667.1,0.74976]
[1739751950487,1.1618,2667.3,2666.8,7.22506336]
[1739751950677,1.1618,2667.3,2667.2,0.74974]
[1739751951879,1.1618,2667.3,2667.1,0.74974]
[1739751952996,1.1618,2667.3,2666.8,5.86135536]
[1739751952997,1.91152,2667.3,2666.8,5.86135536]
[1739751953291,0.74974,2667.2,2666.8,5.86135536]
[1739751953495,1.91153,2667.3,2667.0,0.74977]
[1739751955091,4.41353,2667.3,2667.0,0.74977]
[1739751955292,4.41353,2667.3,2666.8,5.86135536]
[1739751955293,3.6638,2667.3,2666.8,5.86135536]
[1739751955592,3.95756,2667.2,2666.9,0.74979]
[1739751955792,0.5703,2667.1,2666.9,0.74979]
[1739751956190,0.5703,2667.1,2666.8,5.86135536]
[1739751956191,0.5703,2667.1,2667.0,0.74979]
[1739751956498,0.5703,2667.1,2666.9,0.7498]
[1739751956694,0.5703,2667.1,2666.8,5.86135536]
[1739751956898,0.5703,2667.1,2667.0,0.74979]
[1739751958100,1.32008,2667.1,2666.9,0.74981]
[1739751958802,0.5703,2667.1,2667.0,0.74979]
[1739751962305,1.1618,2667.3,2667.2,0.74974]
[1739751966808,4.3696,2667.3,2666.8,3.2078]
[1739751966993,0.74978,2667.1,2666.9,0.74982]
[1739751967810,1.29594,2667.2,2666.9,0.74982]
[1739751968008,0.5462,2667.2,2667.0,0.74979]
[1739751968211,0.5462,2667.2,2666.8,3.2078]
[1739751968403,0.5462,2667.2,2667.1,0.74977]
[1739751969603,0.5462,2667.2,2667.1,0.74976]
[1739751969803,1.29595,2667.2,2667.0,0.74979]
[1739751970003,0.5462,2667.2,2667.0,0.74979]
[1739751970207,1.29594,2667.2,2667.0,0.74979]
[1739751970609,0.5462,2667.2,2667.0,0.74979]
[1739751970810,1.29594,2667.2,2667.0,0.74979]
[1739751971613,0.5462,2667.2,2666.8,3.2078]
[1739751971910,0.5462,2667.2,2667.0,0.74978]
[1739751972108,1.29594,2667.2,2667.0,0.74978]
[1739751972710,0.5462,2667.2,2667.0,0.74978]
[1739751973312,1.29595,2667.2,2667.0,0.74978]
[1739751974409,0.74978,2667.1,2666.9,0.74981]
[1739751974810,0.5462,2667.2,2666.8,7.74696611]
[1739751975113,1.29595,2667.2,2667.0,0.74978]
[1739751976718,0.7498,2667.0,2666.8,0.74984]
[1739751976909,0.7498,2667.0,2666.8,0.74985]
[1739751977309,0.74977,2667.1,2666.9,0.74981]
[1739751977511,0.5462,2667.2,2666.7,0.5681]
[1739751977712,0.5462,2667.2,2667.1,0.74977]
[1739751978214,0.5462,2667.2,2667.0,0.74978]
[1739751978215,1.29595,2667.2,2667.0,0.74978]
[1739751979308,0.5462,2667.2,2666.7,2.44276]
[1739751979509,0.5462,2667.2,2667.0,0.74979]
[1739751979703,0.5462,2667.2,2666.9,0.7498]
[1739751979704,0.74977,2667.1,2666.9,0.7498]
[1739751980615,0.5462,2667.2,2667.1,0.74977]
[1739751980916,1.29595,2667.2,2667.0,0.74977]
[1739751981616,0.5462,2667.2,2666.7,0.5681]
[1739751981817,0.74978,2667.1,2666.9,0.7498]
[1739751982114,0.74978,2667.1,2666.7,0.5681]
[1739751982313,0.5462,2667.2,2666.7,0.5681]
[1739751982519,1.29596,2667.2,2667.0,0.74978]
[1739751984016,1.29596,2667.2,2666.7,2.44279]
[1739751984017,0.5462,2667.2,2667.1,0.74976]
[1739751984216,0.5462,2667.2,2666.7,0.5681]
[1739751984421,0.74977,2667.1,2666.9,0.74979]
[1739751984612,0.74977,2667.1,2667.0,0.74979]
[1739751984916,0.5462,2667.2,2667.0,0.74979]
[1739751985111,1.29595,2667.2,2667.0,0.74979]
[1739751985416,1.29595,2667.2,2667.0,0.74977]
[1739751985617,0.5462,2667.2,2666.9,1.1873609]
[1739751985821,3.2078,2667.0,2666.6,0.56201819]
[1739751986007,0.74988,2666.7,2666.6,0.00561819]
[1739751986211,0.5814,2666.9,2666.6,0.00561819]
[1739751986412,0.5833,2666.8,2666.6,0.75551819]
[1739751986718,0.5833,2666.8,2666.6,0.00561819]
[1739751987020,0.5749,2666.7,2666.6,0.00561819]
[1739751987205,3.0769,2666.7,2666.6,0.75552819]
[1739751991622,3.0769,2666.7,2666.6,0.00561819]
[1739751991913,3.82678,2666.7,2666.6,0.00561819]
[1739751992117,3.0769,2666.7,2666.6,0.75552819]
[1739751994320,3.0769,2666.7,2666.6,0.00561819]
[1739751994518,3.82678,2666.7,2666.6,0.00561819]
[1739751996014,3.0769,2666.7,2666.6,0.00561819]
[1739751996621,3.82678,2666.7,2666.6,0.00561819]
[1739751997727,7.03458,2666.7,2666.6,0.00561819]
[1739751998921,7.03458,2666.7,2665.9,8.53610989]
[1739751998922,0.74991,2666.6,2665.9,7.98550989]
[1739751999224,3.9578,2666.3,2666.0,0.75007]
[1739751999425,1.1587,2666.2,2666.0,0.75007]
[1739751999622,1.90873,2666.2,2666.0,0.75007]
[1739751999821,0.5765,2666.1,2666.0,0.75007]
[1739752000521,0.5765,2666.1,2665.9,7.98550989]
[1739752000930,1.32656,2666.1,2665.9,7.98550989]
[1739752001130,0.5765,2666.1,2665.9,7.98550989]
[1739752001523,0.5765,2666.1,2665.9,8.73559989]
[1739752001726,0.5765,2666.1,2665.9,7.98550989]
[1739752001926,0.5765,2666.1,2666.0,0.75007]
[1739752002525,1.32656,2666.1,2665.9,7.98550989]
[1739752002720,1.32656,2666.1,2665.8,0.75573819]
[1739752003233,0.5765,2666.1,2665.8,0.75571819]
[1739752003530,0.5765,2666.1,2666.0,0.75007]
[1739752003932,1.32655,2666.1,2665.8,0.75573819]
[1739752004131,1.32655,2666.1,2665.8,0.00561819]
[1739752004324,1.32655,2666.1,2665.8,0.75573819]
[1739752005527,0.7501,2665.9,2665.8,0.00561819]
[1739752005734,3.2521,2665.9,2665.8,0.00561819]
[1739752006627,2.502,2665.9,2665.8,0.00561819]
[1739752006931,3.2521,2665.9,2665.8,0.00561819]
[1739752007931,2.502,2665.9,2665.8,0.75574819]
[1739752008236,2.502,2665.9,2665.8,0.00561819]
[1739752009825,3.2521,2665.9,2665.8,0.00561819]
[1739752010233,2.502,2665.9,2665.8,0.00561819]
[1739752010731,3.2521,2665.9,2665.8,0.00561819]
[1739752011124,6.4599,2665.9,2665.8,0.00561819]
[1739752015436,5.7098,2665.9,2665.8,0.00561819]
[1739752015639,6.4599,2665.9,2665.8,0.00561819]
[1739752016128,5.7098,2665.9,2665.8,0.00561819]
[1739752016334,5.7098,2665.9,2665.8,0.75574819]
[1739752016525,5.7098,2665.9,2665.8,0.00561819]
[1739752016727,5.7098,2665.9,2665.8,0.75574819]
[1739752018132,5.7098,2665.9,2665.2,3.2078]
[1739752018133,8.6248,2665.9,2664.5,3.2078]
[1739752018334,3.2078,2665.2,2664.5,1.7264]
[1739752018631,3.2078,2664.9,2664.5,2.47688]
[1739752018830,3.2078,2664.9,2664.5,1.7264]
[1739752019529,3.2078,2664.9,2664.6,0.75047]
[1739752019733,0.00562883,2665.0,2664.6,13.71548187]
[1739752019929,5.7098,2665.5,2664.6,10.50768187]
[1739752020237,3.2078,2665.2,2664.6,10.50768187]
[1739752020535,3.2078,2665.2,2664.5,1.7264]
[1739752020831,0.75033,2665.1,2664.7,0.75043]
[1739752021032,2.502,2665.0,2664.9,0.75038]
[1739752022139,2.502,2665.0,2664.9,1.30338]
[1739752022525,0.00562883,2665.1,2664.9,0.553]
[1739752022736,0.00562883,2665.1,2665.0,1.88336]
[1739752023932,3.95793,2665.8,2665.6,0.75017]
[1739752024235,2.502,2665.7,2665.5,0.7502]
[1739752024433,0.7502,2665.6,2665.3,0.75025]
[1739752024835,2.502,2665.7,2665.0,6.7049]
[1739752025038,2.502,2665.7,2665.0,3.7899]
[1739752025039,2.50762883,2665.7,2665.0,3.7899]
[1739752025234,0.7503,2665.3,2665.0,4.54025]
[1739752025432,3.2364252,2665.6,2665.0,3.7899]
[1739752025736,3.80173,2665.5,2665.0,3.7899]
[1739752026041,3.80173,2665.5,2665.2,0.75029]
[1739752026440,3.80173,2665.5,2665.0,3.7899]
[1739752026639,3.80173,2665.5,2665.2,0.75029]
[1739752026839,0.595,2665.4,2665.2,0.75029]
[1739752027138,0.595,2665.4,2665.3,0.75027]
[1739752028341,2.502,2665.5,2665.4,0.75024]
[1739752028843,2.502,2665.5,2665.1,2.43469]
[1739752028844,0.75025,2665.4,2665.1,0.5589]
[1739752029042,1.6935,2665.4,2664.9,0.553]
[1739752029340,0.75027,2665.3,2664.8,0.5884]
[1739752029541,0.75027,2665.3,2664.9,0.75037]
[1739752029845,3.2078,2665.0,2664.8,0.5884]
[1739752030042,5.7098,2665.0,2664.8,0.5884]
[1739752030243,6.2954,2665.0,2664.8,0.5884]
[1739752030446,6.2954,2665.0,2664.8,1.3388]
[1739752030745,6.2954,2665.0,2664.8,0.5884]
[1739752030941,6.2954,2665.0,2664.8,1.3388]
[1739752031244,6.2954,2665.0,2664.9,0.75038]
[1739752031635,6.2954,2665.0,2664.8,0.5884]
[1739752031832,3.0876,2665.0,2664.8,0.5884]
[1739752032040,3.0876,2665.0,2664.9,0.75038]
[1739752032242,3.0876,2665.0,2664.8,0.5884]
[1739752032441,3.0876,2665.0,2664.8,1.33881]
[1739752032743,3.0876,2665.0,2664.8,0.5884]
[1739752032941,3.0876,2665.0,2664.8,1.33881]
[1739752033352,3.0876,2665.0,2664.9,0.75038]
[1739752033846,3.0876,2665.0,2664.8,0.5884]
[1739752034046,3.0876,2665.0,2664.8,1.33881]
[1739752034246,3.0876,2665.0,2664.8,0.5884]
[1739752034441,3.0876,2665.0,2664.8,1.33879]
[1739752034643,3.0876,2665.0,2664.8,0.5884]
[1739752034940,3.83796,2665.0,2664.7,0.75042]
[1739752035245,1.1179,2664.9,2664.6,1.31776]
[1739752035446,1.1179,2664.9,2664.6,0.5673]
[1739752035645,1.1179,2664.9,2664.7,0.75043]
[1739752035943,1.1179,2664.9,2664.6,0.5673]
[1739752036144,1.1179,2664.9,2664.7,0.75042]
[1739752036341,1.1179,2664.9,2664.6,0.5673]
[1739752036547,1.1179,2664.9,2664.7,0.75043]
[1739752036743,3.2078,2664.8,2664.4,0.75432652]
[1739752037048,3.2078,2664.8,2664.4,0.00380652]
[1739752037241,3.2078,2664.5,2664.4,0.75432652]
[1739752037550,3.2078,2664.5,2664.4,0.00380652]
[1739752037750,3.2078,2664.5,2664.4,0.75432652]
[1739752037947,3.7541,2664.5,2664.4,0.75432652]
[1739752038255,0.5463,2664.5,2664.4,0.75432652]
[1739752039257,3.7541,2664.5,2664.4,0.00380652]
[1739752039949,3.7541,2664.5,2664.4,0.75432652]
[1739752040351,0.5463,2664.5,2664.4,0.75432652]
[1739752040552,0.5463,2664.5,2664.4,0.00380652]
[1739752041654,3.7541,2664.5,2664.4,0.00380652]
[1739752041854,4.5046,2664.5,2664.4,0.00380652]
[1739752042052,2.6536252,2664.4,2663.7,0.593]
[1739752042353,3.2078,2664.1,2663.9,0.75065]
[1739752042553,3.2078,2664.1,2663.7,0.593]
[1739752042554,2.502,2664.0,2663.7,0.593]
[1739752042753,3.0781,2664.0,2663.7,0.593]
[1739752042955,3.0781,2664.0,2663.9,0.75067]
[1739752044457,2.502,2664.0,2663.9,0.75067]
[1739752044957,2.502,2664.0,2663.9,1.30137]
[1739752045958,2.502,2664.0,2663.9,4.50917]
[1739752046358,0.00562883,2664.1,2664.0,0.75064]
[1739752046558,3.2078,2664.9,2664.8,0.75041]
[1739752046752,6.2978,2664.9,2664.8,0.75041]
[1739752047058,7.04818,2664.9,2664.8,0.75041]
[1739752047450,3.09,2664.9,2664.8,0.75041]
[1739752047851,1.132,2665.0,2664.6,3.2078]
[1739752048158,1.132,2665.0,2664.9,0.75038]
[1739752048755,1.132,2665.0,2664.5,1.155]
[1739752049057,1.132,2665.0,2664.7,0.75042]
[1739752049058,1.88236,2665.0,2664.7,0.75042]
[1739752049360,1.132,2665.0,2664.8,0.75038]
[1739752050659,1.132,2665.0,2664.5,1.155]
[1739752050860,0.75039,2664.9,2664.5,1.32088]
[1739752051067,3.95819,2664.9,2664.5,0.5704]
[1739752051257,3.2078,2664.9,2664.3,3.2078]
[1739752051563,3.2078,2664.9,2664.8,0.75041]
[1739752052453,3.2078,2664.9,2664.4,1.1581]
[1739752053264,3.2078,2664.9,2664.7,0.75043]
[1739752053462,3.2078,2664.9,2664.4,1.1581]
[1739752053963,3.2078,2664.9,2664.6,0.75044]
[1739752054164,0.589,2664.8,2664.7,0.75044]
[1739752054552,1.132,2665.0,2664.6,5.8614252]
[1739752054758,0.00562883,2665.1,2665.0,0.75036]
[1739752055056,0.00562883,2665.1,2665.0,3.95816]
[1739752055461,0.00562883,2665.1,2665.0,5.63696]
[1739752056065,8.83e-06,2665.1,2665.0,11.63696]
[1739752056264,2.502,2665.9,2665.1,0.75033]
[1739752056464,2.502,2665.9,2665.8,0.75013]
[1739752057869,6.2882,2666.0,2665.9,0.7501]
[1739752058568,6.2882,2666.0,2665.8,0.7501]
[1739752059160,6.2882,2666.0,2665.6,0.00562883]
[1739752059560,6.2882,2666.0,2665.8,0.75012]
[1739752059761,6.2882,2666.0,2665.6,0.00562883]
[1739752060060,6.2882,2666.0,2665.9,0.7501]
[1739752060567,6.2882,2666.0,2665.6,0.00562883]
[1739752060769,7.03828,2666.0,2665.8,0.75012]
[1739752060964,7.03829,2666.0,2665.6,0.00562883]
[1739752061169,7.03829,2666.0,2665.7,0.75015]
[1739752061466,7.03829,2666.0,2665.6,0.75580883]
[1739752061467,0.7501,2665.9,2665.6,0.75580883]
[1739752062061,0.7501,2665.9,2665.7,0.75016]
[1739752062262,6.2882,2666.0,2665.6,0.00562883]
[1739752062472,0.75014,2665.8,2665.6,0.00562883]
[1739752063066,3.2078,2665.7,2665.6,0.00562883]
[1739752063469,6.2882,2666.0,2665.6,0.00562883]
[1739752063769,0.75016,2665.7,2665.6,0.00562883]
[1739752063969,3.95796,2665.7,2665.6,0.00562883]
[1739752066169,3.2078,2665.7,2665.6,0.00562883]
[1739752066476,3.95796,2665.7,2665.6,0.00562883]
[1739752067169,0.7503,2665.2,2665.1,2.915]
[1739752067478,0.7503,2665.2,2665.1,0.75033]
[1739752067479,5.7088,2665.2,2665.1,0.75033]
[1739752068676,5.7088,2665.2,2664.9,0.00562883]
[1739752068876,5.7088,2665.2,2665.0,0.75033]
[1739752069080,5.7088,2665.2,2665.1,0.75033]
[1739752069275,1.1667,2665.6,2665.4,0.75023]
[1739752069480,2.501,2665.5,2665.4,0.75023]
[1739752069678,2.501,2665.5,2665.1,1.126]
[1739752069871,2.501,2665.5,2665.3,0.75025]
[1739752070072,2.501,2665.5,2665.4,0.75024]
[1739752070271,2.65925403,2666.1,2665.3,2.6536252]
[1739752070272,3.2078,2666.0,2665.3,2.6536252]
[1739752070577,2.501,2665.9,2665.7,0.75014]
[1739752070970,2.501,2665.9,2665.8,0.75013]
[1739752071375,2.501,2665.9,2665.3,5.8614252]
[1739752071574,3.25112,2665.9,2665.3,5.8614252]
[1739752071772,3.25112,2665.9,2665.5,0.7502]
[1739752071973,0.75015,2665.8,2665.5,0.7502]
[1739752072172,3.25111,2665.9,2665.7,0.75014]
[1739752073180,2.501,2665.9,2665.7,0.75014]
[1739752073574,2.501,2665.9,2665.3,5.8614252]
[1739752073777,3.25111,2665.9,2665.7,0.75015]
[1739752074869,2.501,2665.9,2665.7,0.75015]
[1739752075075,2.501,2665.9,2665.8,0.5538]
[1739752075786,2.501,2665.9,2665.8,1.30393]
[1739752076681,2.501,2665.9,2665.8,0.5538]
[1739752077275,0.00562883,2666.1,2665.8,0.5538]
[1739752077482,0.00562883,2666.1,2666.0,0.75007]
[1739752097295,1.7163,2666.6,2665.9,7.0101252]
[1739752097492,0.5743,2666.6,2666.5,0.74993]
[1739752098493,0.5743,2666.6,2666.4,0.5953]
[1739752098682,0.74993,2666.5,2666.3,0.75559883]
[1739752098885,3.2078,2666.5,2666.3,0.75559883]
[1739752099188,0.74996,2666.4,2666.3,0.00562883]
[1739752099793,3.95775,2666.5,2666.4,0.74996]
[1739752099987,3.2078,2666.5,2666.4,0.74996]
[1739752100294,0.5743,2666.6,2666.5,0.74993]
[1739752105194,0.5743,2666.6,2666.4,0.74995]
[1739752105397,0.5743,2666.6,2666.5,0.74993]
[1739752110304,0.5743,2666.6,2666.5,3.95773]
[1739752110601,0.00562883,2666.8,2666.7,0.74988]
[1739752113400,0.00562883,2666.8,2666.7,3.95768]
[1739752113600,0.00562883,2666.8,2666.7,1.29608]
[1739752114703,0.00562883,2666.8,2666.7,4.50388]
[1739752117300,0.00562883,2666.8,2666.7,1.29608]
[1739752117504,0.00562883,2666.8,2666.7,0.74988]
[1739752117701,0.55542883,2666.8,2666.7,0.74988]
[1739752122501,0.00562883,2666.8,2666.7,0.74988]
[1739752123401,0.5708,2667.2,2666.7,0.547]
[1739752123610,0.5708,2667.2,2667.1,0.74976]
[1739752127015,1.13762883,2667.4,2667.3,0.74971]
[1739752127414,0.54972883,2667.4,2667.3,0.74971]
[1739752135216,0.54972883,2667.4,2667.1,0.74974]
[1739752135419,3.2078,2667.3,2666.9,3.2078]
[1739752135618,3.2078,2667.3,2667.2,0.74974]
[1739752136225,0.54972883,2667.4,2666.9,5.08233]
[1739752136429,0.54972883,2667.4,2667.2,5.8614252]
[1739752136430,0.00562883,2667.4,2667.2,5.8614252]
[1739752136730,0.00562883,2667.4,2667.3,2.52571]
[1739752137029,0.00562883,2667.4,2667.3,1.93331]
[1739752137628,0.00562883,2667.4,2667.3,1.33701]
[1739752137828,0.00562883,2667.4,2667.1,0.74975]
[1739752138035,0.75532883,2667.4,2667.1,0.74975]
[1739752138229,4.3677,2667.3,2666.9,3.2078]
[1739752138430,4.9242,2667.3,2666.9,3.2078]
[1739752138631,4.9242,2667.3,2667.2,0.74974]
[1739752139732,4.9242,2667.3,2666.9,5.8614252]
[1739752139926,5.67393,2667.3,2666.9,3.2078]
[1739752140236,5.67393,2667.3,2667.1,0.74975]
[1739752140435,5.67392,2667.3,2667.1,0.74975]
[1739752140734,4.9242,2667.3,2666.9,3.2078]
[1739752140933,4.9242,2667.3,2667.2,0.74974]
[1739752141432,4.9242,2667.3,2666.9,3.2078]
[1739752142036,4.9242,2667.3,2667.2,0.74974]
[1739752143138,4.9242,2667.3,2666.9,3.2078]
[1739752143330,4.9242,2667.3,2667.1,0.74974]
[1739752143531,0.74975,2667.2,2667.0,0.74977]
[1739752143838,4.9242,2667.3,2666.9,3.2078]
[1739752144036,0.74979,2667.1,2666.9,3.2078]
[1739752144541,0.74979,2667.1,2666.9,3.9576]
[1739752145036,0.74976,2667.2,2667.0,0.74978]
[1739752145236,0.74977,2667.1,2666.9,3.9576]
[1739752145434,7.5778252,2667.3,2666.9,3.2078]
[1739752145629,2.496,2667.1,2666.9,3.2078]
[1739752145829,2.496,2667.1,2666.9,3.9576]
[1739752146434,3.24577,2667.1,2666.9,3.9576]
[1739752146836,2.496,2667.1,2666.9,3.9576]
[1739752147435,2.496,2667.1,2666.9,3.2078]
[1739752147642,2.496,2667.1,2667.0,0.74979]
[1739752147838,4.9242,2667.3,2667.2,0.74974]
[1739752148034,11.9481352,2667.3,2666.7,0.74987]
[1739752148234,4.3700252,2667.3,2666.6,0.74989]
[1739752148434,1.7164,2667.3,2667.2,0.74974]
[1739752148737,0.74977,2667.1,2666.6,0.74989]
[1739752148939,3.2078,2667.0,2666.4,1.906908]
[1739752149135,3.2078,2666.7,2666.4,1.906908]
[1739752149443,1.7738,2666.6,2666.5,0.74993]
[1739752150038,1.1799,2666.6,2666.5,0.74993]
[1739752150239,2.496,2666.7,2666.4,3.2078]
[1739752150440,2.496,2666.7,2666.6,0.74991]
[1739752151237,2.496,2666.7,2666.6,1.35181]
[1739752151942,2.496,2666.7,2666.4,3.2078]
[1739752152143,3.24589,2666.7,2666.4,3.95775]
[1739752152344,2.496,2666.7,2666.6,0.74991]
[1739752152540,2.496,2666.7,2666.5,0.74991]
[1739752152741,2.496,2666.8,2666.6,0.7499]
[1739752152941,2.496,2666.8,2666.4,3.2078]
[1739752152942,2.496,2666.8,2666.7,0.74988]
[1739752155341,1.7719,2666.9,2666.8,0.74985]
[1739752156848,1.7719,2666.9,2666.4,3.2078]
[1739752157045,0.74986,2666.8,2666.5,0.74992]
[1739752157343,0.74988,2666.7,2666.5,0.74992]
[1739752157946,1.7719,2666.9,2666.7,0.74988]
[1739752158443,1.7719,2666.9,2666.8,0.74985]
[1739752159037,2.496,2667.0,2666.8,2.6536252]
[1739752159239,1.1402,2667.2,2666.9,0.5669]
[1739752159441,1.1402,2667.2,2667.1,0.74976]
[1739752161151,1.1402,2667.2,2667.0,1.29568]
[1739752161350,1.1402,2667.2,2666.9,0.5669]
[1739752161550,1.88995,2667.2,2666.9,1.3167]
[1739752161753,1.1402,2667.2,2667.0,0.74978]
[1739752161948,1.1402,2667.2,2666.9,0.5669]
[1739752162146,1.1402,2667.2,2667.1,0.74977]
[1739752164854,1.1402,2667.2,2666.9,0.5669]
[1739752165059,1.88996,2667.2,2666.9,0.74981]
[1739752165555,1.88996,2667.2,2666.7,3.2078]
[1739752165755,1.88996,2667.2,2666.9,0.74981]
[1739752165949,1.88996,2667.2,2666.7,3.2078]
[1739752166151,1.1402,2667.2,2666.7,3.2078]
[1739752166352,1.1402,2667.2,2666.8,1.87463]
[1739752166553,1.1402,2667.2,2667.1,0.74977]
[1739752167250,1.88995,2667.2,2666.9,0.7498]
[1739752167455,1.88995,2667.2,2667.0,0.74979]
[1739752167658,1.88995,2667.2,2666.7,3.2078]
[1739752167659,1.88995,2667.2,2666.9,0.74981]
[1739752167859,0.74977,2667.1,2666.9,0.74981]
[1739752168554,1.1402,2667.2,2666.6,1.1622]
[1739752168761,0.74982,2667.0,2666.7,0.74986]
[1739752168952,0.5441,2666.9,2666.8,0.74985]
[1739752169152,0.5441,2666.9,2666.6,1.1622]
[1739752169355,1.1687,2666.8,2666.7,0.74988]
[1739752172163,1.1687,2666.8,2666.6,0.5721]
[1739752172364,1.91856,2666.8,2666.6,1.322]
[1739752172661,1.91856,2666.8,2666.6,0.5721]
[1739752172858,0.7499,2666.7,2666.4,3.2078]
[1739752173060,0.7499,2666.7,2666.5,0.74993]
[1739752173462,1.1687,2666.8,2666.4,3.2078]
[1739752173762,0.74989,2666.7,2666.4,3.95774]
[1739752174357,3.95772,2666.6,2666.3,0.59562883]
[1739752174553,3.95772,2666.6,2666.3,1.34559883]
[1739752174758,0.74996,2666.4,2666.3,0.00562883]